[Event "Titled Tuesday Blitz February 21 Early 2023"]
[White "Rustemov, Alexander"]
[Black "Lenderman, Aleksandr"]
[WhiteFideId "4119002"]
[BlackFideId "2021285"]
[WhiteElo "2525"]
[BlackElo "2572"]
[Result "0-1"]
[Round "06"]
[TimeControl "180+2"]
[Date "2023.02.21"]
[WhiteClock "0:00:03"]
[BlackClock "0:02:10"]

1. d4 {[%clk 0:02:56]}  e6 {[%clk 0:03:00]} 2. Nf3 {[%clk 0:02:54]}  c5 {[%clk 0:02:58]} 3. c4 {[%clk 0:02:48]}  cxd4 {[%clk 0:02:57]} 4. Nxd4 {[%clk 0:02:48]}  Nf6 {[%clk 0:02:57]} 5. e3 {[%clk 0:02:48]}  d5 {[%clk 0:02:57]} 6. Nc3 {[%clk 0:02:42]}  Bc5 {[%clk 0:02:55]} 7. cxd5 {[%clk 0:02:39]}  exd5 {[%clk 0:02:54]} 8. Be2 {[%clk 0:02:38]}  O-O {[%clk 0:02:54]} 9. O-O {[%clk 0:02:39]}  Nc6 {[%clk 0:02:54]} 10. Nxc6 {[%clk 0:02:26]}  bxc6 {[%clk 0:02:54]} 11. b3 {[%clk 0:02:27]}  Bd6 {[%clk 0:02:53]} 12. Bb2 {[%clk 0:02:24]}  Qe7 {[%clk 0:02:51]} 13. Qc2 {[%clk 0:02:14]}  Ng4 {[%clk 0:02:44]} 14. h3 {[%clk 0:02:10]}  Qe5 {[%clk 0:02:36]} 15. g3 {[%clk 0:00:41]}  Nxe3 {[%clk 0:02:34]} 16. Qd2 {[%clk 0:00:22]}  Nxf1 {[%clk 0:02:34]} 17. Bxf1 {[%clk 0:00:23]}  Qh5 {[%clk 0:02:28]} 18. Kh2 {[%clk 0:00:18]}  Re8 {[%clk 0:02:26]} 19. Rd1 {[%clk 0:00:16]}  Bg4 {[%clk 0:02:23]} 20. Rc1 {[%clk 0:00:14]}  Bd7 {[%clk 0:02:20]} 21. Ne2 {[%clk 0:00:12]}  Bxh3 {[%clk 0:02:14]} 22. Qd4 {[%clk 0:00:03]}  Bxf1+ {[%clk 0:02:10]} 0-1


[Site "https://www.chess.com"]

[Event "Titled Tuesday Blitz February 21 Early 2023"]
[White "Samsonkin, Artiom"]
[Black "Daneshvar, Bardiya"]
[WhiteFideId "13503111"]
[BlackFideId "12576468"]
[WhiteElo "2420"]
[BlackElo "2540"]
[Result "0-1"]
[Round "06"]
[TimeControl "180+2"]
[Date "2023.02.21"]
[WhiteClock "0:00:03"]
[BlackClock "0:01:07"]

1. e4 {[%clk 0:02:59]}  Nf6 {[%clk 0:03:00]} 2. Nc3 {[%clk 0:02:55]}  d5 {[%clk 0:03:00]} 3. exd5 {[%clk 0:02:53]}  Nxd5 {[%clk 0:03:01]} 4. Nge2 {[%clk 0:02:53]}  e5 {[%clk 0:02:58]} 5. g3 {[%clk 0:02:46]}  c5 {[%clk 0:02:57]} 6. Bg2 {[%clk 0:02:46]}  Nc7 {[%clk 0:02:57]} 7. O-O {[%clk 0:02:45]}  Be7 {[%clk 0:02:56]} 8. d3 {[%clk 0:02:41]}  O-O {[%clk 0:02:56]} 9. f4 {[%clk 0:02:41]}  exf4 {[%clk 0:02:56]} 10. Nxf4 {[%clk 0:02:27]}  Nc6 {[%clk 0:02:56]} 11. Kh1 {[%clk 0:02:07]}  Nd4 {[%clk 0:02:43]} 12. Ncd5 {[%clk 0:01:57]}  Bd6 {[%clk 0:02:34]} 13. c3 {[%clk 0:01:54]}  Nde6 {[%clk 0:02:32]} 14. Nxc7 {[%clk 0:01:48]}  Nxc7 {[%clk 0:02:32]} 15. d4 {[%clk 0:01:42]}  cxd4 {[%clk 0:02:28]} 16. Qxd4 {[%clk 0:01:40]}  Ne6 {[%clk 0:02:24]} 17. Nxe6 {[%clk 0:01:39]}  Bxe6 {[%clk 0:02:25]} 18. Bxb7 {[%clk 0:01:34]}  Qc7 {[%clk 0:02:25]} 19. Bg2 {[%clk 0:01:26]}  Rad8 {[%clk 0:02:22]} 20. Bf4 {[%clk 0:01:09]}  Bxf4 {[%clk 0:02:16]} 21. Qxf4 {[%clk 0:01:10]}  Qxf4 {[%clk 0:02:16]} 22. Rxf4 {[%clk 0:00:58]}  Rd2 {[%clk 0:02:15]} 23. b4 {[%clk 0:00:44]}  Rc8 {[%clk 0:02:12]} 24. Rc1 {[%clk 0:00:36]}  Rxa2 {[%clk 0:02:11]} 25. c4 {[%clk 0:00:23]}  g6 {[%clk 0:02:08]} 26. c5 {[%clk 0:00:23]}  Rd8 {[%clk 0:02:05]} 27. Kg1 {[%clk 0:00:05]}  Rdd2 {[%clk 0:02:04]} 28. Bh1 {[%clk 0:00:05]}  Rxh2 {[%clk 0:02:03]} 29. c6 {[%clk 0:00:06]}  Rh3 {[%clk 0:01:52]} 30. Rf3 {[%clk 0:00:05]}  Bd5 {[%clk 0:01:42]} 31. Bg2 {[%clk 0:00:05]}  Rh2 {[%clk 0:01:14]} 32. Rf2 {[%clk 0:00:03]}  Rxg2+ {[%clk 0:01:11]} 33. Rxg2 {[%clk 0:00:03]}  Rxg2+ {[%clk 0:01:12]} 34. Kf1 {[%clk 0:00:04]}  Rh2 {[%clk 0:01:11]} 35. Rc5 {[%clk 0:00:03]}  Be6 {[%clk 0:01:09]} 36. c7 {[%clk 0:00:03]}  Kg7 {[%clk 0:01:08]} 37. Re5 {[%clk 0:00:03]}  Rc2 {[%clk 0:01:07]} 0-1


[Site "https://www.chess.com"]

[Event "Titled Tuesday Blitz February 21 Early 2023"]
[White "Pichot, Alan"]
[Black "Erigaisi Arjun"]
[WhiteFideId "110973"]
[BlackFideId "35009192"]
[WhiteElo "2638"]
[BlackElo "2701"]
[Result "0-1"]
[Round "06"]
[TimeControl "180+2"]
[Date "2023.02.21"]
[WhiteClock "0:00:04"]
[BlackClock "0:00:04"]

1. e4 {[%clk 0:02:54]}  d6 {[%clk 0:02:57]} 2. d4 {[%clk 0:02:53]}  g6 {[%clk 0:02:56]} 3. Nc3 {[%clk 0:02:52]}  Bg7 {[%clk 0:02:56]} 4. Be3 {[%clk 0:02:53]}  a6 {[%clk 0:02:56]} 5. Qd2 {[%clk 0:02:52]}  b5 {[%clk 0:02:56]} 6. h4 {[%clk 0:02:50]}  h6 {[%clk 0:02:48]} 7. a4 {[%clk 0:02:44]}  b4 {[%clk 0:02:46]} 8. Nd5 {[%clk 0:02:45]}  a5 {[%clk 0:02:45]} 9. c3 {[%clk 0:02:44]}  e6 {[%clk 0:02:36]} 10. Nf4 {[%clk 0:02:43]}  bxc3 {[%clk 0:02:35]} 11. bxc3 {[%clk 0:02:43]}  Nf6 {[%clk 0:02:35]} 12. f3 {[%clk 0:02:42]}  O-O {[%clk 0:02:26]} 13. Nd3 {[%clk 0:02:14]}  h5 {[%clk 0:02:24]} 14. Bg5 {[%clk 0:02:05]}  Qe8 {[%clk 0:02:18]} 15. Nh3 {[%clk 0:02:04]}  Nbd7 {[%clk 0:02:17]} 16. Bh6 {[%clk 0:01:41]}  Nb6 {[%clk 0:02:12]} 17. Qg5 {[%clk 0:01:31]}  Nh7 {[%clk 0:01:59]} 18. Qc1 {[%clk 0:01:31]}  e5 {[%clk 0:01:55]} 19. Bxg7 {[%clk 0:01:27]}  Kxg7 {[%clk 0:01:55]} 20. Ng5 {[%clk 0:01:18]}  Nxg5 {[%clk 0:01:51]} 21. hxg5 {[%clk 0:01:18]}  Nxa4 {[%clk 0:01:38]} 22. Be2 {[%clk 0:01:15]}  Nb6 {[%clk 0:01:29]} 23. O-O {[%clk 0:01:15]}  a4 {[%clk 0:01:24]} 24. dxe5 {[%clk 0:01:00]}  dxe5 {[%clk 0:01:25]} 25. c4 {[%clk 0:01:00]}  Ba6 {[%clk 0:01:15]} 26. Nc5 {[%clk 0:01:01]}  Bc8 {[%clk 0:01:05]} 27. Qc3 {[%clk 0:01:01]}  Qe7 {[%clk 0:00:57]} 28. Nd3 {[%clk 0:01:00]}  Qxg5 {[%clk 0:00:57]} 29. f4 {[%clk 0:00:54]}  Qe7 {[%clk 0:00:57]} 30. Nxe5 {[%clk 0:00:51]}  f6 {[%clk 0:00:55]} 31. Nd3 {[%clk 0:00:45]}  Ba6 {[%clk 0:00:49]} 32. Nb4 {[%clk 0:00:38]}  Qc5+ {[%clk 0:00:48]} 33. Kh1 {[%clk 0:00:38]}  Bb7 {[%clk 0:00:41]} 34. e5 {[%clk 0:00:27]}  Rae8 {[%clk 0:00:36]} 35. Nd3 {[%clk 0:00:25]}  Qxc4 {[%clk 0:00:34]} 36. Qxc4 {[%clk 0:00:25]}  Nxc4 {[%clk 0:00:35]} 37. Rfc1 {[%clk 0:00:26]}  Ne3 {[%clk 0:00:28]} 38. Rxc7+ {[%clk 0:00:19]}  Rf7 {[%clk 0:00:28]} 39. Rxf7+ {[%clk 0:00:18]}  Kxf7 {[%clk 0:00:28]} 40. Rxa4 {[%clk 0:00:18]}  Bxg2+ {[%clk 0:00:13]} 41. Kg1 {[%clk 0:00:19]}  Bh3 {[%clk 0:00:12]} 42. Ra7+ {[%clk 0:00:16]}  Re7 {[%clk 0:00:12]} 43. Ra6 {[%clk 0:00:16]}  Be6 {[%clk 0:00:09]} 44. Nc5 {[%clk 0:00:13]}  fxe5 {[%clk 0:00:07]} 45. fxe5 {[%clk 0:00:14]}  Bd5 {[%clk 0:00:06]} 46. Bd3 {[%clk 0:00:08]}  Rxe5 {[%clk 0:00:03]} 47. Bxg6+ {[%clk 0:00:09]}  Kg7 {[%clk 0:00:03]} 48. Kf2 {[%clk 0:00:09]}  Ng4+ {[%clk 0:00:04]} 49. Kg3 {[%clk 0:00:09]}  Rg5 {[%clk 0:00:04]} 50. Be4 {[%clk 0:00:05]}  Nf6+ {[%clk 0:00:03]} 51. Kf4 {[%clk 0:00:05]}  Rg4+ {[%clk 0:00:04]} 52. Kf5 {[%clk 0:00:05]}  Bxe4+ {[%clk 0:00:04]} 53. Nxe4 {[%clk 0:00:06]}  Nxe4 {[%clk 0:00:05]} 54. Ra7+ {[%clk 0:00:06]}  Kf8 {[%clk 0:00:05]} 55. Ra8+ {[%clk 0:00:05]}  Ke7 {[%clk 0:00:05]} 56. Ra7+ {[%clk 0:00:05]}  Kd6 {[%clk 0:00:06]} 57. Ra6+ {[%clk 0:00:05]}  Kc5 {[%clk 0:00:05]} 58. Rh6 {[%clk 0:00:05]}  Ng3+ {[%clk 0:00:05]} 59. Ke5 {[%clk 0:00:05]}  h4 {[%clk 0:00:04]} 60. Rh8 {[%clk 0:00:06]}  Kc4 {[%clk 0:00:04]} 61. Rh7 {[%clk 0:00:03]}  Kd3 {[%clk 0:00:04]} 62. Ra7 {[%clk 0:00:02]}  Re4+ {[%clk 0:00:04]} 63. Kd5 {[%clk 0:00:02]}  Ke3 {[%clk 0:00:04]} 64. Ra3+ {[%clk 0:00:01]}  Kf4 {[%clk 0:00:04]} 65. Ra8 {[%clk 0:00:02]}  Kf3 {[%clk 0:00:04]} 66. Rf8+ {[%clk 0:00:02]}  Rf4 {[%clk 0:00:04]} 67. Rh8 {[%clk 0:00:02]}  Kg4 {[%clk 0:00:05]} 68. Ke5 {[%clk 0:00:03]}  Rf5+ {[%clk 0:00:05]} 69. Kd4 {[%clk 0:00:03]}  h3 {[%clk 0:00:04]} 70. Ke3 {[%clk 0:00:04]}  h2 {[%clk 0:00:04]} 0-1


[Site "https://www.chess.com"]

[Event "Titled Tuesday Blitz February 21 Early 2023"]
[White "Tabatabaei, M. Amin"]
[Black "Kukhmazov, Arsen"]
[WhiteFideId "12521213"]
[BlackFideId "24108260"]
[WhiteElo "2677"]
[BlackElo "2512"]
[Result "0-1"]
[Round "06"]
[TimeControl "180+2"]
[Date "2023.02.21"]
[WhiteClock "0:00:04"]
[BlackClock "0:00:06"]

1. d4 {[%clk 0:02:56]}  d5 {[%clk 0:02:59]} 2. c4 {[%clk 0:02:56]}  c6 {[%clk 0:03:00]} 3. Nf3 {[%clk 0:02:56]}  Nf6 {[%clk 0:03:00]} 4. e3 {[%clk 0:02:56]}  Bg4 {[%clk 0:02:59]} 5. h3 {[%clk 0:02:56]}  Bh5 {[%clk 0:02:59]} 6. Nc3 {[%clk 0:02:54]}  e6 {[%clk 0:03:00]} 7. g4 {[%clk 0:02:54]}  Bg6 {[%clk 0:03:00]} 8. Ne5 {[%clk 0:02:55]}  Nbd7 {[%clk 0:03:00]} 9. Nxg6 {[%clk 0:02:55]}  hxg6 {[%clk 0:03:01]} 10. Bg2 {[%clk 0:02:54]}  g5 {[%clk 0:03:00]} 11. a3 {[%clk 0:02:52]}  Bd6 {[%clk 0:02:54]} 12. Qe2 {[%clk 0:02:51]}  Nf8 {[%clk 0:02:46]} 13. e4 {[%clk 0:02:47]}  dxe4 {[%clk 0:02:46]} 14. Bxg5 {[%clk 0:02:44]}  Ng6 {[%clk 0:02:30]} 15. Nxe4 {[%clk 0:02:41]}  Bf4 {[%clk 0:02:17]} 16. Bxf6 {[%clk 0:02:14]}  gxf6 {[%clk 0:02:17]} 17. Rd1 {[%clk 0:02:15]}  Kf8 {[%clk 0:02:06]} 18. Qf3 {[%clk 0:02:06]}  Kg7 {[%clk 0:02:06]} 19. Kf1 {[%clk 0:02:03]}  f5 {[%clk 0:01:49]} 20. gxf5 {[%clk 0:02:01]}  exf5 {[%clk 0:01:50]} 21. Ng3 {[%clk 0:02:01]}  Qg5 {[%clk 0:01:50]} 22. d5 {[%clk 0:01:42]}  Rae8 {[%clk 0:01:27]} 23. d6 {[%clk 0:01:30]}  Nh4 {[%clk 0:01:18]} 24. Qd3 {[%clk 0:01:29]}  Re3 {[%clk 0:00:55]} 25. Qd4+ {[%clk 0:01:08]}  f6 {[%clk 0:00:52]} 26. Rg1 {[%clk 0:00:47]}  Rxg3 {[%clk 0:00:37]} 27. fxg3 {[%clk 0:00:47]}  Be3 {[%clk 0:00:37]} 28. gxh4 {[%clk 0:00:24]}  Qg3 {[%clk 0:00:37]} 29. Qxe3 {[%clk 0:00:21]}  Qxe3 {[%clk 0:00:38]} 30. d7 {[%clk 0:00:17]}  Rd8 {[%clk 0:00:20]} 31. Bxc6+ {[%clk 0:00:17]}  Kh6 {[%clk 0:00:21]} 32. Bxb7 {[%clk 0:00:14]}  Qf4+ {[%clk 0:00:21]} 33. Kg2 {[%clk 0:00:07]}  Qxc4 {[%clk 0:00:17]} 34. Kh1 {[%clk 0:00:07]}  Qc7 {[%clk 0:00:10]} 35. Bc8 {[%clk 0:00:08]}  Qc6+ {[%clk 0:00:09]} 36. Rg2 {[%clk 0:00:08]}  f4 {[%clk 0:00:09]} 37. Kh2 {[%clk 0:00:07]}  f3 {[%clk 0:00:08]} 38. Rf2 {[%clk 0:00:07]}  Qc7+ {[%clk 0:00:08]} 39. Kh1 {[%clk 0:00:08]}  Qg3 {[%clk 0:00:09]} 40. Rh2 {[%clk 0:00:02]}  f2 {[%clk 0:00:09]} 41. Bb7 {[%clk 0:00:02]}  Rxd7 {[%clk 0:00:08]} 42. Rf1 {[%clk 0:00:02]}  Rd2 {[%clk 0:00:06]} 43. b4 {[%clk 0:00:02]}  f5 {[%clk 0:00:06]} 44. b5 {[%clk 0:00:02]}  f4 {[%clk 0:00:07]} 45. Bc6 {[%clk 0:00:02]}  f3 {[%clk 0:00:07]} 46. a4 {[%clk 0:00:03]}  Re2 {[%clk 0:00:07]} 47. b6 {[%clk 0:00:02]}  axb6 {[%clk 0:00:07]} 48. Bb5 {[%clk 0:00:03]}  Re1 {[%clk 0:00:07]} 49. Ba6 {[%clk 0:00:04]}  Qg1+ {[%clk 0:00:06]} 0-1


[Site "https://www.chess.com"]

[Event "Titled Tuesday Blitz February 21 Early 2023"]
[White "Demchenko, Anton"]
[Black "Kislinsky, Alexey"]
[WhiteFideId "4160258"]
[BlackFideId "14108801"]
[WhiteElo "2623"]
[BlackElo "2357"]
[Result "1-0"]
[Round "06"]
[TimeControl "180+2"]
[Date "2023.02.21"]
[WhiteClock "0:00:51"]
[BlackClock "0:00:03"]

1. e4 {[%clk 0:02:59]}  c5 {[%clk 0:02:58]} 2. Nc3 {[%clk 0:02:57]}  Nc6 {[%clk 0:02:52]} 3. Bb5 {[%clk 0:02:55]}  Nd4 {[%clk 0:02:47]} 4. a4 {[%clk 0:02:55]}  g6 {[%clk 0:02:46]} 5. Nf3 {[%clk 0:02:50]}  Bg7 {[%clk 0:02:45]} 6. d3 {[%clk 0:02:49]}  a6 {[%clk 0:02:34]} 7. Bc4 {[%clk 0:02:49]}  d6 {[%clk 0:02:33]} 8. Nxd4 {[%clk 0:02:40]}  cxd4 {[%clk 0:02:32]} 9. Ne2 {[%clk 0:02:40]}  Qb6 {[%clk 0:02:21]} 10. a5 {[%clk 0:02:33]}  Qc5 {[%clk 0:02:18]} 11. O-O {[%clk 0:02:29]}  Nf6 {[%clk 0:02:17]} 12. b4 {[%clk 0:02:20]}  Qc7 {[%clk 0:02:13]} 13. Bb3 {[%clk 0:02:18]}  O-O {[%clk 0:02:04]} 14. h3 {[%clk 0:02:17]}  d5 {[%clk 0:01:13]} 15. exd5 {[%clk 0:02:08]}  Rd8 {[%clk 0:01:13]} 16. Bf4 {[%clk 0:02:05]}  Qd7 {[%clk 0:01:11]} 17. d6 {[%clk 0:02:06]}  Nh5 {[%clk 0:01:05]} 18. Bh2 {[%clk 0:01:52]}  exd6 {[%clk 0:00:55]} 19. Ng3 {[%clk 0:01:50]}  Nxg3 {[%clk 0:00:53]} 20. fxg3 {[%clk 0:01:50]}  Rf8 {[%clk 0:00:51]} 21. Qf3 {[%clk 0:01:47]}  Be5 {[%clk 0:00:37]} 22. g4 {[%clk 0:01:46]}  Qc6 {[%clk 0:00:19]} 23. Bxe5 {[%clk 0:01:33]}  dxe5 {[%clk 0:00:19]} 24. Rae1 {[%clk 0:01:32]}  Qxf3 {[%clk 0:00:15]} 25. Rxf3 {[%clk 0:01:32]}  Bd7 {[%clk 0:00:12]} 26. Rxe5 {[%clk 0:01:31]}  Bc6 {[%clk 0:00:12]} 27. Rf6 {[%clk 0:01:29]}  Rad8 {[%clk 0:00:10]} 28. Re7 {[%clk 0:01:21]}  Rd7 {[%clk 0:00:10]} 29. Rxd7 {[%clk 0:01:14]}  Bxd7 {[%clk 0:00:10]} 30. Rd6 {[%clk 0:01:15]}  Bc6 {[%clk 0:00:10]} 31. Rxd4 {[%clk 0:01:16]}  Re8 {[%clk 0:00:11]} 32. Kf2 {[%clk 0:01:16]}  Kg7 {[%clk 0:00:10]} 33. g5 {[%clk 0:01:03]}  h6 {[%clk 0:00:08]} 34. Rf4 {[%clk 0:01:00]}  hxg5 {[%clk 0:00:06]} 35. Rxf7+ {[%clk 0:01:00]}  Kh6 {[%clk 0:00:06]} 36. g4 {[%clk 0:00:55]}  Re5 {[%clk 0:00:04]} 37. Rc7 {[%clk 0:00:51]}  Rb5 {[%clk 0:00:03]} 38. Bg8 {[%clk 0:00:51]} 1-0


[Site "https://www.chess.com"]

[Event "Titled Tuesday Blitz February 21 Early 2023"]
[White "Golubka, Petro"]
[Black "Terry, Renato"]
[WhiteFideId "14114224"]
[BlackFideId "3803457"]
[WhiteElo "2371"]
[BlackElo "2520"]
[Result "0-1"]
[Round "06"]
[TimeControl "180+2"]
[Date "2023.02.21"]
[WhiteClock "0:00:13"]
[BlackClock "0:01:19"]

1. e4 {[%clk 0:00:37]}  g6 {[%clk 0:02:55]} 2. d4 {[%clk 0:00:36]}  Bg7 {[%clk 0:02:55]} 3. Nc3 {[%clk 0:00:37]}  c6 {[%clk 0:02:56]} 4. Be3 {[%clk 0:00:38]}  d5 {[%clk 0:02:56]} 5. Qd2 {[%clk 0:00:39]}  b5 {[%clk 0:02:56]} 6. a3 {[%clk 0:00:39]}  a6 {[%clk 0:02:55]} 7. h4 {[%clk 0:00:38]}  h5 {[%clk 0:02:47]} 8. Nf3 {[%clk 0:00:38]}  e6 {[%clk 0:02:46]} 9. Bd3 {[%clk 0:00:37]}  Nd7 {[%clk 0:02:46]} 10. exd5 {[%clk 0:00:34]}  cxd5 {[%clk 0:02:46]} 11. Ng5 {[%clk 0:00:35]}  Ngf6 {[%clk 0:02:47]} 12. f3 {[%clk 0:00:35]}  Nb6 {[%clk 0:02:46]} 13. Ne2 {[%clk 0:00:36]}  Nc4 {[%clk 0:02:46]} 14. Qc1 {[%clk 0:00:36]}  Nxe3 {[%clk 0:02:41]} 15. Qxe3 {[%clk 0:00:37]}  Bh6 {[%clk 0:02:26]} 16. c3 {[%clk 0:00:36]}  Nh7 {[%clk 0:02:25]} 17. f4 {[%clk 0:00:35]}  Nf6 {[%clk 0:02:25]} 18. Qf3 {[%clk 0:00:35]}  Bd7 {[%clk 0:02:20]} 19. g3 {[%clk 0:00:35]}  a5 {[%clk 0:02:20]} 20. O-O {[%clk 0:00:36]}  Rb8 {[%clk 0:02:17]} 21. b4 {[%clk 0:00:36]}  O-O {[%clk 0:02:17]} 22. Kg2 {[%clk 0:00:35]}  Bg7 {[%clk 0:02:17]} 23. Rfc1 {[%clk 0:00:35]}  Bc6 {[%clk 0:02:13]} 24. Qe3 {[%clk 0:00:32]}  Ng4 {[%clk 0:02:13]} 25. Qd2 {[%clk 0:00:31]}  Nf6 {[%clk 0:02:03]} 26. Qe3 {[%clk 0:00:31]}  Qd7 {[%clk 0:01:59]} 27. Nf3 {[%clk 0:00:30]}  Ba8 {[%clk 0:01:54]} 28. Ne5 {[%clk 0:00:30]}  Qc7 {[%clk 0:01:54]} 29. Rab1 {[%clk 0:00:27]}  Ne4 {[%clk 0:01:54]} 30. g4 {[%clk 0:00:26]}  hxg4 {[%clk 0:01:53]} 31. Nxg4 {[%clk 0:00:27]}  Qe7 {[%clk 0:01:42]} 32. Qh3 {[%clk 0:00:26]}  f5 {[%clk 0:01:34]} 33. Nh2 {[%clk 0:00:24]}  Kf7 {[%clk 0:01:29]} 34. Nf3 {[%clk 0:00:25]}  Rh8 {[%clk 0:01:30]} 35. Rh1 {[%clk 0:00:21]}  Bf6 {[%clk 0:01:30]} 36. Qh2 {[%clk 0:00:21]}  Qc7 {[%clk 0:01:29]} 37. Rbc1 {[%clk 0:00:20]}  Rh6 {[%clk 0:01:21]} 38. Ng5+ {[%clk 0:00:20]}  Ke7 {[%clk 0:01:20]} 39. Bxe4 {[%clk 0:00:19]}  dxe4 {[%clk 0:01:20]} 40. Kg3 {[%clk 0:00:20]}  Rbh8 {[%clk 0:01:19]} 41. c4 {[%clk 0:00:13]}  Bxg5 {[%clk 0:01:19]} 0-1


[Site "https://www.chess.com"]

[Event "Titled Tuesday Blitz February 21 Early 2023"]
[White "Zhigalko, Sergei"]
[Black "Fernandez Guillen, Ernesto J."]
[WhiteFideId "13502956"]
[BlackFideId "3512428"]
[WhiteElo "2572"]
[BlackElo "2477"]
[Result "0-1"]
[Round "06"]
[TimeControl "180+2"]
[Date "2023.02.21"]
[WhiteClock "0:00:01"]
[BlackClock "0:00:07"]

1. e4 {[%clk 0:03:00]}  e5 {[%clk 0:02:56]} 2. Nf3 {[%clk 0:03:01]}  Nc6 {[%clk 0:02:56]} 3. Bc4 {[%clk 0:03:01]}  g6 {[%clk 0:02:56]} 4. d4 {[%clk 0:02:54]}  exd4 {[%clk 0:02:57]} 5. Nxd4 {[%clk 0:02:47]}  Bg7 {[%clk 0:02:57]} 6. Nxc6 {[%clk 0:02:47]}  bxc6 {[%clk 0:02:58]} 7. O-O {[%clk 0:02:47]}  Ne7 {[%clk 0:02:59]} 8. Nc3 {[%clk 0:02:45]}  O-O {[%clk 0:02:59]} 9. Re1 {[%clk 0:02:45]}  d6 {[%clk 0:02:58]} 10. Bb3 {[%clk 0:02:44]}  Be6 {[%clk 0:02:58]} 11. Bg5 {[%clk 0:02:44]}  h6 {[%clk 0:02:58]} 12. Be3 {[%clk 0:02:41]}  a5 {[%clk 0:02:56]} 13. Qd2 {[%clk 0:02:41]}  Kh7 {[%clk 0:02:56]} 14. Rad1 {[%clk 0:02:41]}  Qb8 {[%clk 0:02:55]} 15. Bd4 {[%clk 0:02:36]}  Bxd4 {[%clk 0:02:25]} 16. Qxd4 {[%clk 0:02:36]}  c5 {[%clk 0:02:25]} 17. Qd3 {[%clk 0:02:17]}  a4 {[%clk 0:02:25]} 18. Bxe6 {[%clk 0:02:07]}  fxe6 {[%clk 0:02:22]} 19. b3 {[%clk 0:01:55]}  axb3 {[%clk 0:02:17]} 20. axb3 {[%clk 0:01:56]}  Nc6 {[%clk 0:02:07]} 21. Ne2 {[%clk 0:01:47]}  Qd8 {[%clk 0:01:51]} 22. f4 {[%clk 0:01:32]}  Qf6 {[%clk 0:01:46]} 23. Rf1 {[%clk 0:01:30]}  Nb4 {[%clk 0:01:07]} 24. Qd2 {[%clk 0:01:15]}  Ra2 {[%clk 0:01:04]} 25. e5 {[%clk 0:01:11]}  Qf5 {[%clk 0:00:43]} 26. exd6 {[%clk 0:00:22]}  Rxc2 {[%clk 0:00:43]} 27. Qe1 {[%clk 0:00:23]}  Qe4 {[%clk 0:00:11]} 28. dxc7 {[%clk 0:00:08]}  Rxe2 {[%clk 0:00:10]} 29. Rd7+ {[%clk 0:00:09]}  Kg8 {[%clk 0:00:10]} 30. Qg3 {[%clk 0:00:09]}  Nd5 {[%clk 0:00:09]} 31. f5 {[%clk 0:00:06]}  g5 {[%clk 0:00:07]} 32. f6 {[%clk 0:00:01]}  Ne3 {[%clk 0:00:07]} 0-1


[Site "https://www.chess.com"]

[Event "Titled Tuesday Blitz February 21 Early 2023"]
[White "Dehtiarov, Roman"]
[Black "Chigaev, Maksim"]
[WhiteFideId "14186640"]
[BlackFideId "4108116"]
[WhiteElo "2289"]
[BlackElo "2628"]
[Result "0-1"]
[Round "06"]
[TimeControl "180+2"]
[Date "2023.02.21"]
[WhiteClock "0:00:05"]
[BlackClock "0:00:22"]

1. e4 {[%clk 0:03:00]}  c5 {[%clk 0:03:00]} 2. Nc3 {[%clk 0:03:00]}  e6 {[%clk 0:02:59]} 3. f4 {[%clk 0:02:58]}  a6 {[%clk 0:02:58]} 4. Nf3 {[%clk 0:02:58]}  Nc6 {[%clk 0:02:59]} 5. g3 {[%clk 0:02:58]}  d5 {[%clk 0:02:57]} 6. e5 {[%clk 0:02:58]}  h5 {[%clk 0:02:52]} 7. Bg2 {[%clk 0:02:57]}  h4 {[%clk 0:02:52]} 8. O-O {[%clk 0:02:51]}  hxg3 {[%clk 0:02:52]} 9. hxg3 {[%clk 0:02:52]}  Nh6 {[%clk 0:02:52]} 10. Ne2 {[%clk 0:02:48]}  Nf5 {[%clk 0:02:45]} 11. d3 {[%clk 0:02:46]}  d4 {[%clk 0:02:38]} 12. Qe1 {[%clk 0:02:43]}  Nb4 {[%clk 0:02:34]} 13. Qd1 {[%clk 0:02:40]}  Nd5 {[%clk 0:02:34]} 14. Rf2 {[%clk 0:02:21]}  Nde3 {[%clk 0:02:34]} 15. Bxe3 {[%clk 0:02:18]}  Nxe3 {[%clk 0:02:35]} 16. Qd2 {[%clk 0:02:18]}  Nxg2 {[%clk 0:02:33]} 17. Rxg2 {[%clk 0:02:17]}  b5 {[%clk 0:02:34]} 18. Ng5 {[%clk 0:02:16]}  Bb7 {[%clk 0:02:31]} 19. Ne4 {[%clk 0:02:16]}  f5 {[%clk 0:02:26]} 20. exf6 {[%clk 0:02:16]}  gxf6 {[%clk 0:02:26]} 21. g4 {[%clk 0:01:54]}  f5 {[%clk 0:02:21]} 22. gxf5 {[%clk 0:01:32]}  exf5 {[%clk 0:02:22]} 23. Ng5 {[%clk 0:01:26]}  Bxg2 {[%clk 0:02:21]} 24. Kxg2 {[%clk 0:01:26]}  Qd5+ {[%clk 0:02:21]} 25. Kg3 {[%clk 0:01:25]}  Bd6 {[%clk 0:02:09]} 26. Ng1 {[%clk 0:01:16]}  O-O-O {[%clk 0:02:03]} 27. N1f3 {[%clk 0:01:06]}  Rde8 {[%clk 0:01:55]} 28. Re1 {[%clk 0:01:04]}  Rhg8 {[%clk 0:01:55]} 29. Rxe8+ {[%clk 0:00:59]}  Rxe8 {[%clk 0:01:55]} 30. Qa5 {[%clk 0:00:57]}  Kb7 {[%clk 0:01:37]} 31. c4 {[%clk 0:00:45]}  Qc6 {[%clk 0:00:59]} 32. cxb5 {[%clk 0:00:37]}  axb5 {[%clk 0:00:59]} 33. Nf7 {[%clk 0:00:31]}  Bc7 {[%clk 0:00:43]} 34. Qd2 {[%clk 0:00:26]}  Re3 {[%clk 0:00:43]} 35. Ng5 {[%clk 0:00:26]}  Qd6 {[%clk 0:00:39]} 36. Nh3 {[%clk 0:00:25]}  Qg6+ {[%clk 0:00:32]} 37. Kf2 {[%clk 0:00:21]}  Rxf3+ {[%clk 0:00:30]} 38. Kxf3 {[%clk 0:00:18]}  Qg4+ {[%clk 0:00:31]} 39. Kf2 {[%clk 0:00:19]}  Qxh3 {[%clk 0:00:31]} 40. Qc1 {[%clk 0:00:12]}  Qh4+ {[%clk 0:00:25]} 41. Kg1 {[%clk 0:00:08]}  Qg3+ {[%clk 0:00:23]} 42. Kh1 {[%clk 0:00:08]}  Bxf4 {[%clk 0:00:22]} 43. Qc2 {[%clk 0:00:05]}  Qh3+ {[%clk 0:00:22]} 0-1


[Site "https://www.chess.com"]